Workbook

Sheet instructions

Sheet timecost
B1: Number of Activities = | E1: 68
B2: Target Completion Time = | E2: 592
F3: Number of
C4: Normal | D4: Max | E4: Crash | F4: Immediate | G4: Immediate
B5: Act # | C5: Time | D5: Crash | E5: Cost | F5: Predecessors | G5: Predecessors
A6: X1 = Induct Aircraft to Structural/Electrical Phase | B6: 1 | C6: 8 | D6: 0 | E6: 0 | F6: 0
A7: X2 = Raise Fuselage on Work Stands | B7: 2 | C7: 8 | D7: 0 | E7: 0 | F7: 2 | G7: 3 | H7: 4
A8: X3 = Review Work Package, Inventory OCM Parts | B8: 3 | C8: 8 | D8: 0 | E8: 0 | F8: 1 | G8: 1
A9: X4 = Inventory Upgrade Kits | B9: 4 | C9: 16 | D9: 4 | E9: 14788.87 | F9: 1 | G9: 1
A10: X5 = Structural Repair – Roof Section | B10: 5 | C10: 56 | D10: 0 | E10: 0 | F10: 2 | G10: 3 | H10: 4
A11: X6 = Structural Repair – Nose Section | B11: 6 | C11: 104 | D11: 0 | E11: 0 | F11: 2 | G11: 3 | H11: 4
A12: X7 = Remove Landing Gear | B12: 7 | C12: 8 | D12: 2 | E12: 14788.87 | F12: 1 | G12: 2
A13: X8 = Remove Electrical Interference – Transition Section | B13: 8 | C13: 16 | D13: 0 | E13: 0 | F13: 1 | G13: 2
A14: X9 = Remove Electrical Interference – Tailcone Section | B14: 9 | C14: 16 | D14: 0 | E14: 0 | F14: 1 | G14: 2
A15: X10 = Remove Electrical Interference - Cabin | B15: 10 | C15: 24 | D15: 0 | E15: 0 | F15: 1 | G15: 2
A16: X11 = Structural Repair – Cockpit Section | B16: 11 | C16: 80 | D16: 0 | E16: 0 | F16: 1 | G16: 2
A17: X12 = Inspect/Repair Landing Gear Fittings | B17: 12 | C17: 16 | D17: 4 | E17: 14788.87 | F17: 1 | G17: 7
A18: X13 = Inspect/Repair/Reassemble Landing Gear | B18: 13 | C18: 64 | D18: 8 | E18: 43617.67 | F18: 1 | G18: 7
A19: X14 = Structural Repair – Transition Section | B19: 14 | C19: 24 | D19: 0 | E19: 0 | F19: 1 | G19: 8
A20: X15 = Structural Repair – Tail Cone Section | B20: 15 | C20: 72 | D20: 0 | E20: 0 | F20: 1 | G20: 9
A21: X16 = Structural Repair – Cabin Under Floor | B21: 16 | C21: 48 | D21: 0 | E21: 0 | F21: 1 | G21: 10
A22: X17 = SSI 50-6 Rework of Lower Aft Transition Section | B22: 17 | C22: 240 | D22: 0 | E22: 0 | F22: 1 | G22: 14
A23: X18 = Remove Electrical Interference – Roof Section | B23: 18 | C23: 8 | D23: 0 | E23: 0 | F23: 1 | G23: 5
A24: X19 = SSI 50-15 Installation of ESSS Doublers | B24: 19 | C24: 24 | D24: 0 | E24: 0 | F24: 1 | G24: 18
A25: X20 = Install Landing Gear | B25: 20 | C25: 8 | D25: 0 | E25: 0 | F25: 2 | G25: 12 | H25: 13
A26: X21 = Structural Repair – Cabin Overhead | B26: 21 | C26: 48 | D26: 0 | E26: 0 | F26: 1 | G26: 16
A27: X22 = SSI 50-22 Modification of Cockpit Floor and Door Posts | B27: 22 | C27: 32 | D27: 0 | E27: 0 | F27: 1 | G27: 11
A28: X23 = SSI 50-16 Rework of Upper Plating and Doubler Installation | B28: 23 | C28: 64 | D28: 0 | E28: 0 | F28: 1 | G28: 19
A29: X24 = SSI 50-9 Modification of Drive Shaft Supports | B29: 24 | C29: 32 | D29: 0 | E29: 0 | F29: 1 | G29: 15
A30: X25 = SSI 50-35 Modification of Canopy Assembly, Nose Door Hinge Access | B30: 25 | C30: 8 | D30: 0 | E30: 0 | F30: 1 | G30: 6
A31: X26 = Electrical Repair – Nose Section | B31: 26 | C31: 24 | D31: 0 | E31: 0 | F31: 1 | G31: 25
A32: X27 = Electrical Repair – Cockpit Section | B32: 27 | C32: 24 | D32: 0 | E32: 0 | F32: 1 | G32: 22
A33: X28 = SSI 50-13 Installation of Tail Cone Plating Modification Kit | B33: 28 | C33: 56 | D33: 0 | E33: 0 | F33: 1 | G33: 24
A34: X29 = SSI 50-5 Installation of Side Fuselage Structural Reinforcement | B34: 29 | C34: 152 | D34: 0 | E34: 0 | F34: 1 | G34: 21
A35: X30 = Final/Recheck Structural – Nose Section | B35: 30 | C35: 24 | D35: 9 | E35: 5179.27 | F35: 1 | G35: 26
A36: X31 = Final/Recheck Structural – Cockpit Section | B36: 31 | C36: 24 | D36: 8 | E36: 7581.67 | F36: 1 | G36: 27
A37: X32 = SSI 50-30 Installation of HIRSS Repair Kit | B37: 32 | C37: 16 | D37: 0 | E37: 0 | F37: 1 | G37: 23
A38: X33 = Final/Recheck Electrical – Nose Section | B38: 33 | C38: 8 | D38: 2 | E38: 14788.87 | F38: 1 | G38: 30
A39: X34 = Final/Recheck Electrical – Cockpit Section | B39: 34 | C39: 8 | D39: 2 | E39: 14788.87 | F39: 1 | G39: 31
A40: X35 = Electrical Repairs – Roof Section | B40: 35 | C40: 24 | D40: 0 | E40: 0 | F40: 1 | G40: 32
A41: X36 = SSI 50-17 Modification of Station 605.00 Bulkhead | B41: 36 | C41: 32 | D41: 0 | E41: 0 | F41: 1 | G41: 28
A42: X37 = Final/Recheck Structural – Roof Section | B42: 37 | C42: 24 | D42: 8 | E42: 7581.67 | F42: 1 | G42: 35
A43: X38 = Structural Repair - Firewalls | B43: 38 | C43: 24 | D43: 8 | E43: 7581.67 | F43: 1 | G43: 37
A44: X39 = SSI 50-24 Modification of Tail Cone | B44: 39 | C44: 56 | D44: 0 | E44: 0 | F44: 1 | G44: 36
A45: X40 = SSI 50-19 Modification of Left and Right Side Firewall Assemblies | B45: 40 | C45: 32 | D45: 0 | E45: 0 | F45: 1 | G45: 38
A46: X41 = Final/Recheck Structural – Firewalls Section | B46: 41 | C46: 8 | D46: 2 | E46: 14788.87 | F46: 1 | G46: 40
A47: X42 = SSI 50-29 Modification of Tail Cone Shear Deck | B47: 42 | C47: 56 | D47: 0 | E47: 0 | F47: 1 | G47: 39
A48: X43 = Final/Recheck Electrical – Roof Section | B48: 43 | C48: 16 | D48: 6 | E48: 5179.27 | F48: 1 | G48: 41
A49: X44 = SSI 50-7 Modification of Buttline 34.50 | B49: 44 | C49: 40 | D49: 0 | E49: 0 | F49: 1 | G49: 29
A50: X45 = SSI 50-20 Modification of Tail Rotor Drive Shaft Support Brackets | B50: 45 | C50: 16 | D50: 0 | E50: 0 | F50: 1 | G50: 17
A51: X46 = SSI 50-34 Modification of Transition Station 485.00 | B51: 46 | C51: 8 | D51: 0 | E51: 0 | F51: 1 | G51: 45
A52: X47 = SSI 50-21 Replacement of Vapor Barrier Support Structure | B52: 47 | C52: 24 | D52: 0 | E52: 0 | F52: 1 | G52: 46
A53: X48 = SSI 50-26 Modification of Station 379.00 Frame | B53: 48 | C53: 24 | D53: 0 | E53: 0 | F53: 1 | G53: 44
A54: X49 = Electrical Repair –Tail Cone Section | B54: 49 | C54: 24 | D54: 0 | E54: 0 | F54: 1 | G54: 42
A55: X50 = Electrical Repair – Transition Section | B55: 50 | C55: 32 | D55: 0 | E55: 0 | F55: 1 | G55: 47
A56: X51 = Electrical Repair – Cabin Section | B56: 51 | C56: 40 | D56: 0 | E56: 0 | F56: 1 | G56: 48
A57: X52 = Final/Recheck Structural – Tail Cone Section | B57: 52 | C57: 24 | D57: 8 | E57: 7581.67 | F57: 1 | G57: 49
A58: X53 = Final/Recheck Structural – Transition Section | B58: 53 | C58: 24 | D58: 8 | E58: 7581.67 | F58: 1 | G58: 50
A59: X54 = Final/Recheck Electrical – Tail Cone Section | B59: 54 | C59: 8 | D59: 2 | E59: 14788.87 | F59: 1 | G59: 52
A60: X55 = Final/Recheck Structural - Cabin | B60: 55 | C60: 24 | D60: 8 | E60: 7581.67 | F60: 1 | G60: 51
A61: X56 = Final/Recheck Electrical – Transition Section | B61: 56 | C61: 16 | D61: 6 | E61: 5179.27 | F61: 1 | G61: 53
A62: X57 = Final/Recheck Electrical – Cabin Section | B62: 57 | C62: 16 | D62: 6 | E62: 5179.27 | F62: 1 | G62: 55
A63: X58 = Remove Fuselage from Work Stands | B63: 58 | C63: 8 | D63: 2 | E63: 14788.87 | F63: 6 | G63: 20 | H63: 34 | I63: 43 | J63: 54 | K63: 56 | L63: 57
A64: X59 = Wire Alignment | B64: 59 | C64: 40 | D64: 8 | E64: 21996.07 | F64: 1 | G64: 58
A65: X60 = All Structural Repairs Complete | B65: 60 | C65: 4 | D65: 1 | E65: 14788.87 | F65: 2 | G65: 33 | H65: 59
A66: X61 = Seam Seal Fuselage | B66: 61 | C66: 32 | D66: 0 | E66: 0 | F66: 1 | G66: 60
A67: X62 = Move Fuselage to Final ATC | B67: 62 | C67: 4 | D67: 1 | E67: 14788.87 | F67: 1 | G67: 61
A68: X63 = Final ATC | B68: 63 | C68: 80 | D68: 20 | E68: 14788.87 | F68: 1 | G68: 62
A69: X64 = Final Electrical Inspection | B69: 64 | C69: 8 | D69: 0 | E69: 0 | F69: 1 | G69: 63
A70: X65 = Final Structural Inspection | B70: 65 | C70: 8 | D70: 0 | E70: 0 | F70: 1 | G70: 63
A71: X66 = Install EMI Filters | B71: 66 | C71: 8 | D71: 0 | E71: 0 | F71: 1 | G71: 64
A72: X67 = Clean and Close | B72: 67 | C72: 16 | D72: 4 | E72: 14788.87 | F72: 2 | G72: 64 | H72: 65
A73: X68 = Move Fuselage to Retreat/Prime Paint | B73: 68 | C73: 4 | D73: 0 | E73: 0 | F73: 2 | G73: 66 | H73: 67

Sheet paths
A1: Path | B1: Path
A2: Number | B2: Length | C2: Path
A3: 1 | B3: 644 | C3: 1 | D3: 4 | E3: 2 | F3: 10 | G3: 16 | H3: 21 | I3: 29 | J3: 44 | K3: 48 | L3: 51 | M3: 55 | N3: 57 | O3: 58 | P3: 59 | Q3: 60 | R3: 61 | S3: 62 | T3: 63 | U3: 64 | V3: 67 | W3: 68
A4: 2 | B4: 644 | C4: 1 | D4: 4 | E4: 2 | F4: 10 | G4: 16 | H4: 21 | I4: 29 | J4: 44 | K4: 48 | L4: 51 | M4: 55 | N4: 57 | O4: 58 | P4: 59 | Q4: 60 | R4: 61 | S4: 62 | T4: 63 | U4: 65 | V4: 67 | W4: 68
A5: 3 | B5: 636 | C5: 1 | D5: 4 | E5: 2 | F5: 10 | G5: 16 | H5: 21 | I5: 29 | J5: 44 | K5: 48 | L5: 51 | M5: 55 | N5: 57 | O5: 58 | P5: 59 | Q5: 60 | R5: 61 | S5: 62 | T5: 63 | U5: 64 | V5: 66 | W5: 68
A6: 4 | B6: 636 | C6: 1 | D6: 3 | E6: 2 | F6: 10 | G6: 16 | H6: 21 | I6: 29 | J6: 44 | K6: 48 | L6: 51 | M6: 55 | N6: 57 | O6: 58 | P6: 59 | Q6: 60 | R6: 61 | S6: 62 | T6: 63 | U6: 64 | V6: 67 | W6: 68
A7: 5 | B7: 636 | C7: 1 | D7: 3 | E7: 2 | F7: 10 | G7: 16 | H7: 21 | I7: 29 | J7: 44 | K7: 48 | L7: 51 | M7: 55 | N7: 57 | O7: 58 | P7: 59 | Q7: 60 | R7: 61 | S7: 62 | T7: 63 | U7: 65 | V7: 67 | W7: 68
A8: 6 | B8: 628 | C8: 1 | D8: 3 | E8: 2 | F8: 10 | G8: 16 | H8: 21 | I8: 29 | J8: 44 | K8: 48 | L8: 51 | M8: 55 | N8: 57 | O8: 58 | P8: 59 | Q8: 60 | R8: 61 | S8: 62 | T8: 63 | U8: 64 | V8: 66 | W8: 68
A9: 7 | B9: 628 | C9: 1 | D9: 4 | E9: 2 | F9: 8 | G9: 14 | H9: 17 | I9: 45 | J9: 46 | K9: 47 | L9: 50 | M9: 53 | N9: 56 | O9: 58 | P9: 59 | Q9: 60 | R9: 61 | S9: 62 | T9: 63 | U9: 64 | V9: 67 | W9: 68
A10: 8 | B10: 628 | C10: 1 | D10: 4 | E10: 2 | F10: 8 | G10: 14 | H10: 17 | I10: 45 | J10: 46 | K10: 47 | L10: 50 | M10: 53 | N10: 56 | O10: 58 | P10: 59 | Q10: 60 | R10: 61 | S10: 62 | T10: 63 | U10: 65 | V10: 67 | W10: 68
A11: 9 | B11: 620 | C11: 1 | D11: 4 | E11: 2 | F11: 8 | G11: 14 | H11: 17 | I11: 45 | J11: 46 | K11: 47 | L11: 50 | M11: 53 | N11: 56 | O11: 58 | P11: 59 | Q11: 60 | R11: 61 | S11: 62 | T11: 63 | U11: 64 | V11: 66 | W11: 68
A12: 10 | B12: 620 | C12: 1 | D12: 3 | E12: 2 | F12: 8 | G12: 14 | H12: 17 | I12: 45 | J12: 46 | K12: 47 | L12: 50 | M12: 53 | N12: 56 | O12: 58 | P12: 59 | Q12: 60 | R12: 61 | S12: 62 | T12: 63 | U12: 65 | V12: 67 | W12: 68
A13: 11 | B13: 620 | C13: 1 | D13: 3 | E13: 2 | F13: 8 | G13: 14 | H13: 17 | I13: 45 | J13: 46 | K13: 47 | L13: 50 | M13: 53 | N13: 56 | O13: 58 | P13: 59 | Q13: 60 | R13: 61 | S13: 62 | T13: 63 | U13: 64 | V13: 67 | W13: 68
A14: 12 | B14: 612 | C14: 1 | D14: 3 | E14: 2 | F14: 8 | G14: 14 | H14: 17 | I14: 45 | J14: 46 | K14: 47 | L14: 50 | M14: 53 | N14: 56 | O14: 58 | P14: 59 | Q14: 60 | R14: 61 | S14: 62 | T14: 63 | U14: 64 | V14: 66 | W14: 68
A15: 13 | B15: 604 | C15: 1 | D15: 4 | E15: 2 | F15: 9 | G15: 15 | H15: 24 | I15: 28 | J15: 36 | K15: 39 | L15: 42 | M15: 49 | N15: 52 | O15: 54 | P15: 58 | Q15: 59 | R15: 60 | S15: 61 | T15: 62 | U15: 63 | V15: 65 | W15: 67 | X15: 68
A16: 14 | B16: 604 | C16: 1 | D16: 4 | E16: 2 | F16: 9 | G16: 15 | H16: 24 | I16: 28 | J16: 36 | K16: 39 | L16: 42 | M16: 49 | N16: 52 | O16: 54 | P16: 58 | Q16: 59 | R16: 60 | S16: 61 | T16: 62 | U16: 63 | V16: 64 | W16: 67 | X16: 68
A17: 15 | B17: 596 | C17: 1 | D17: 4 | E17: 2 | F17: 9 | G17: 15 | H17: 24 | I17: 28 | J17: 36 | K17: 39 | L17: 42 | M17: 49 | N17: 52 | O17: 54 | P17: 58 | Q17: 59 | R17: 60 | S17: 61 | T17: 62 | U17: 63 | V17: 64 | W17: 66 | X17: 68
A18: 16 | B18: 596 | C18: 1 | D18: 3 | E18: 2 | F18: 9 | G18: 15 | H18: 24 | I18: 28 | J18: 36 | K18: 39 | L18: 42 | M18: 49 | N18: 52 | O18: 54 | P18: 58 | Q18: 59 | R18: 60 | S18: 61 | T18: 62 | U18: 63 | V18: 64 | W18: 67 | X18: 68
A19: 17 | B19: 596 | C19: 1 | D19: 3 | E19: 2 | F19: 9 | G19: 15 | H19: 24 | I19: 28 | J19: 36 | K19: 39 | L19: 42 | M19: 49 | N19: 52 | O19: 54 | P19: 58 | Q19: 59 | R19: 60 | S19: 61 | T19: 62 | U19: 63 | V19: 65 | W19: 67 | X19: 68
A20: 18 | B20: 588 | C20: 1 | D20: 3 | E20: 2 | F20: 9 | G20: 15 | H20: 24 | I20: 28 | J20: 36 | K20: 39 | L20: 42 | M20: 49 | N20: 52 | O20: 54 | P20: 58 | Q20: 59 | R20: 60 | S20: 61 | T20: 62 | U20: 63 | V20: 64 | W20: 66 | X20: 68
A21: 19 | B21: 516 | C21: 1 | D21: 4 | E21: 5 | F21: 18 | G21: 19 | H21: 23 | I21: 32 | J21: 35 | K21: 37 | L21: 38 | M21: 40 | N21: 41 | O21: 43 | P21: 58 | Q21: 59 | R21: 60 | S21: 61 | T21: 62 | U21: 63 | V21: 64 | W21: 67 | X21: 68
A22: 20 | B22: 516 | C22: 1 | D22: 4 | E22: 5 | F22: 18 | G22: 19 | H22: 23 | I22: 32 | J22: 35 | K22: 37 | L22: 38 | M22: 40 | N22: 41 | O22: 43 | P22: 58 | Q22: 59 | R22: 60 | S22: 61 | T22: 62 | U22: 63 | V22: 65 | W22: 67 | X22: 68
A23: 21 | B23: 508 | C23: 1 | D23: 4 | E23: 5 | F23: 18 | G23: 19 | H23: 23 | I23: 32 | J23: 35 | K23: 37 | L23: 38 | M23: 40 | N23: 41 | O23: 43 | P23: 58 | Q23: 59 | R23: 60 | S23: 61 | T23: 62 | U23: 63 | V23: 64 | W23: 66 | X23: 68
A24: 22 | B24: 508 | C24: 1 | D24: 3 | E24: 5 | F24: 18 | G24: 19 | H24: 23 | I24: 32 | J24: 35 | K24: 37 | L24: 38 | M24: 40 | N24: 41 | O24: 43 | P24: 58 | Q24: 59 | R24: 60 | S24: 61 | T24: 62 | U24: 63 | V24: 65 | W24: 67 | X24: 68
A25: 23 | B25: 508 | C25: 1 | D25: 3 | E25: 5 | F25: 18 | G25: 19 | H25: 23 | I25: 32 | J25: 35 | K25: 37 | L25: 38 | M25: 40 | N25: 41 | O25: 43 | P25: 58 | Q25: 59 | R25: 60 | S25: 61 | T25: 62 | U25: 63 | V25: 64 | W25: 67 | X25: 68
A26: 24 | B26: 500 | C26: 1 | D26: 3 | E26: 5 | F26: 18 | G26: 19 | H26: 23 | I26: 32 | J26: 35 | K26: 37 | L26: 38 | M26: 40 | N26: 41 | O26: 43 | P26: 58 | Q26: 59 | R26: 60 | S26: 61 | T26: 62 | U26: 63 | V26: 64 | W26: 66 | X26: 68
A27: 25 | B27: 396 | C27: 1 | D27: 4 | E27: 2 | F27: 11 | G27: 22 | H27: 27 | I27: 31 | J27: 34 | K27: 58 | L27: 59 | M27: 60 | N27: 61 | O27: 62 | P27: 63 | Q27: 65 | R27: 67 | S27: 68
A28: 26 | B28: 396 | C28: 1 | D28: 4 | E28: 2 | F28: 11 | G28: 22 | H28: 27 | I28: 31 | J28: 34 | K28: 58 | L28: 59 | M28: 60 | N28: 61 | O28: 62 | P28: 63 | Q28: 64 | R28: 67 | S28: 68
A29: 27 | B29: 388 | C29: 1 | D29: 4 | E29: 2 | F29: 11 | G29: 22 | H29: 27 | I29: 31 | J29: 34 | K29: 58 | L29: 59 | M29: 60 | N29: 61 | O29: 62 | P29: 63 | Q29: 64 | R29: 66 | S29: 68
A30: 28 | B30: 388 | C30: 1 | D30: 3 | E30: 2 | F30: 11 | G30: 22 | H30: 27 | I30: 31 | J30: 34 | K30: 58 | L30: 59 | M30: 60 | N30: 61 | O30: 62 | P30: 63 | Q30: 64 | R30: 67 | S30: 68
A31: 29 | B31: 388 | C31: 1 | D31: 3 | E31: 2 | F31: 11 | G31: 22 | H31: 27 | I31: 31 | J31: 34 | K31: 58 | L31: 59 | M31: 60 | N31: 61 | O31: 62 | P31: 63 | Q31: 65 | R31: 67 | S31: 68
A32: 30 | B32: 380 | C32: 1 | D32: 3 | E32: 2 | F32: 11 | G32: 22 | H32: 27 | I32: 31 | J32: 34 | K32: 58 | L32: 59 | M32: 60 | N32: 61 | O32: 62 | P32: 63 | Q32: 64 | R32: 66 | S32: 68
A33: 31 | B33: 340 | C33: 1 | D33: 4 | E33: 6 | F33: 25 | G33: 26 | H33: 30 | I33: 33 | J33: 60 | K33: 61 | L33: 62 | M33: 63 | N33: 64 | O33: 67 | P33: 68
A34: 32 | B34: 340 | C34: 1 | D34: 4 | E34: 6 | F34: 25 | G34: 26 | H34: 30 | I34: 33 | J34: 60 | K34: 61 | L34: 62 | M34: 63 | N34: 65 | O34: 67 | P34: 68
A35: 33 | B35: 332 | C35: 1 | D35: 4 | E35: 6 | F35: 25 | G35: 26 | H35: 30 | I35: 33 | J35: 60 | K35: 61 | L35: 62 | M35: 63 | N35: 64 | O35: 66 | P35: 68
A36: 34 | B36: 332 | C36: 1 | D36: 3 | E36: 6 | F36: 25 | G36: 26 | H36: 30 | I36: 33 | J36: 60 | K36: 61 | L36: 62 | M36: 63 | N36: 65 | O36: 67 | P36: 68
A37: 35 | B37: 332 | C37: 1 | D37: 3 | E37: 6 | F37: 25 | G37: 26 | H37: 30 | I37: 33 | J37: 60 | K37: 61 | L37: 62 | M37: 63 | N37: 64 | O37: 67 | P37: 68
A38: 36 | B38: 324 | C38: 1 | D38: 3 | E38: 6 | F38: 25 | G38: 26 | H38: 30 | I38: 33 | J38: 60 | K38: 61 | L38: 62 | M38: 63 | N38: 64 | O38: 66 | P38: 68
A39: 37 | B39: 308 | C39: 1 | D39: 4 | E39: 2 | F39: 7 | G39: 13 | H39: 20 | I39: 58 | J39: 59 | K39: 60 | L39: 61 | M39: 62 | N39: 63 | O39: 64 | P39: 67 | Q39: 68
A40: 38 | B40: 308 | C40: 1 | D40: 4 | E40: 2 | F40: 7 | G40: 13 | H40: 20 | I40: 58 | J40: 59 | K40: 60 | L40: 61 | M40: 62 | N40: 63 | O40: 65 | P40: 67 | Q40: 68
A41: 39 | B41: 300 | C41: 1 | D41: 4 | E41: 2 | F41: 7 | G41: 13 | H41: 20 | I41: 58 | J41: 59 | K41: 60 | L41: 61 | M41: 62 | N41: 63 | O41: 64 | P41: 66 | Q41: 68
A42: 40 | B42: 300 | C42: 1 | D42: 3 | E42: 2 | F42: 7 | G42: 13 | H42: 20 | I42: 58 | J42: 59 | K42: 60 | L42: 61 | M42: 62 | N42: 63 | O42: 64 | P42: 67 | Q42: 68
A43: 41 | B43: 300 | C43: 1 | D43: 3 | E43: 2 | F43: 7 | G43: 13 | H43: 20 | I43: 58 | J43: 59 | K43: 60 | L43: 61 | M43: 62 | N43: 63 | O43: 65 | P43: 67 | Q43: 68
A44: 42 | B44: 292 | C44: 1 | D44: 3 | E44: 2 | F44: 7 | G44: 13 | H44: 20 | I44: 58 | J44: 59 | K44: 60 | L44: 61 | M44: 62 | N44: 63 | O44: 64 | P44: 66 | Q44: 68
A45: 43 | B45: 260 | C45: 1 | D45: 4 | E45: 2 | F45: 7 | G45: 12 | H45: 20 | I45: 58 | J45: 59 | K45: 60 | L45: 61 | M45: 62 | N45: 63 | O45: 65 | P45: 67 | Q45: 68
A46: 44 | B46: 260 | C46: 1 | D46: 4 | E46: 2 | F46: 7 | G46: 12 | H46: 20 | I46: 58 | J46: 59 | K46: 60 | L46: 61 | M46: 62 | N46: 63 | O46: 64 | P46: 67 | Q46: 68
A47: 45 | B47: 252 | C47: 1 | D47: 4 | E47: 2 | F47: 7 | G47: 12 | H47: 20 | I47: 58 | J47: 59 | K47: 60 | L47: 61 | M47: 62 | N47: 63 | O47: 64 | P47: 66 | Q47: 68
A48: 46 | B48: 252 | C48: 1 | D48: 3 | E48: 2 | F48: 7 | G48: 12 | H48: 20 | I48: 58 | J48: 59 | K48: 60 | L48: 61 | M48: 62 | N48: 63 | O48: 65 | P48: 67 | Q48: 68
A49: 47 | B49: 252 | C49: 1 | D49: 3 | E49: 2 | F49: 7 | G49: 12 | H49: 20 | I49: 58 | J49: 59 | K49: 60 | L49: 61 | M49: 62 | N49: 63 | O49: 64 | P49: 67 | Q49: 68
A50: 48 | B50: 244 | C50: 1 | D50: 3 | E50: 2 | F50: 7 | G50: 12 | H50: 20 | I50: 58 | J50: 59 | K50: 60 | L50: 61 | M50: 62 | N50: 63 | O50: 64 | P50: 66 | Q50: 68

Sheet manual
A1: Project Completion Time = | E1: =MAX(C12:C10000) -> 641
A2: Total Cost of Crashing = | E2: =SUMPRODUCT(E5:GH5,E7:GH7) -> 44366.61
A4: Activity Number | E4: 1 | F4: 2 | G4: 3 | H4: 4 | I4: 5 | J4: 6 | K4: 7 | L4: 8 | M4: 9 | N4: 10 | O4: 11 | P4: 12 | Q4: 13 | R4: 14 | S4: 15 | T4: 16 | U4: 17 | V4: 18 | W4: 19 | X4: 20 | Y4: 21 | Z4: 22 | AA4: 23 | AB4: 24 | AC4: 25 | AD4: 26 | AE4: 27 | AF4: 28 | AG4: 29 | AH4: 30 | AI4: 31 | AJ4: 32 | AK4: 33 | AL4: 34 | AM4: 35 | AN4: 36 | AO4: 37 | AP4: 38 | AQ4: 39 | AR4: 40 | AS4: 41 | AT4: 42 | AU4: 43 | AV4: 44 | AW4: 45 | AX4: 46 | AY4: 47 | AZ4: 48 | BA4: 49 | BB4: 50 | BC4: 51 | BD4: 52 | BE4: 53 | BF4: 54 | BG4: 55 | BH4: 56 | BI4: 57 | BJ4: 58 | BK4: 59 | BL4: 60 | BM4: 61 | BN4: 62 | BO4: 63 | BP4: 64 | BQ4: 65 | BR4: 66 | BS4: 67 | BT4: 68
A5: Per Time Period Crashing Cost | E5: 0 | F5: 0 | G5: 0 | H5: 14788.87 | I5: 0 | J5: 0 | K5: 14788.87 | L5: 0 | M5: 0 | N5: 0 | O5: 0 | P5: 14788.87 | Q5: 43617.67 | R5: 0 | S5: 0 | T5: 0 | U5: 0 | V5: 0 | W5: 0 | X5: 0 | Y5: 0 | Z5: 0 | AA5: 0 | AB5: 0 | AC5: 0 | AD5: 0 | AE5: 0 | AF5: 0 | AG5: 0 | AH5: 5179.27 | AI5: 7581.67 | AJ5: 0 | AK5: 14788.87 | AL5: 14788.87 | AM5: 0 | AN5: 0 | AO5: 7581.67 | AP5: 7581.67 | AQ5: 0 | AR5: 0 | AS5: 14788.87 | AT5: 0 | AU5: 5179.27 | AV5: 0 | AW5: 0 | AX5: 0 | AY5: 0 | AZ5: 0 | BA5: 0 | BB5: 0 | BC5: 0 | BD5: 7581.67 | BE5: 7581.67 | BF5: 14788.87 | BG5: 7581.67 | BH5: 5179.27 | BI5: 5179.27 | BJ5: 14788.87 | BK5: 21996.07 | BL5: 14788.87 | BM5: 0 | BN5: 14788.87 | BO5: 14788.87 | BP5: 0 | BQ5: 0 | BR5: 0 | BS5: 14788.87 | BT5: 0
A6: Maximum Possible Crashing | E6: 0 | F6: 0 | G6: 0 | H6: 4 | I6: 0 | J6: 0 | K6: 2 | L6: 0 | M6: 0 | N6: 0 | O6: 0 | P6: 4 | Q6: 8 | R6: 0 | S6: 0 | T6: 0 | U6: 0 | V6: 0 | W6: 0 | X6: 0 | Y6: 0 | Z6: 0 | AA6: 0 | AB6: 0 | AC6: 0 | AD6: 0 | AE6: 0 | AF6: 0 | AG6: 0 | AH6: 9 | AI6: 8 | AJ6: 0 | AK6: 2 | AL6: 2 | AM6: 0 | AN6: 0 | AO6: 8 | AP6: 8 | AQ6: 0 | AR6: 0 | AS6: 2 | AT6: 0 | AU6: 6 | AV6: 0 | AW6: 0 | AX6: 0 | AY6: 0 | AZ6: 0 | BA6: 0 | BB6: 0 | BC6: 0 | BD6: 8 | BE6: 8 | BF6: 2 | BG6: 8 | BH6: 6 | BI6: 6 | BJ6: 2 | BK6: 8 | BL6: 1 | BM6: 0 | BN6: 1 | BO6: 20 | BP6: 0 | BQ6: 0 | BR6: 0 | BS6: 4 | BT6: 0
A7: Selected Crashing | E7: 0 | F7: 0 | G7: 0 | H7: 3 | I7: 0 | J7: 0 | K7: 0 | L7: 0 | M7: 0 | N7: 0 | O7: 0 | P7: 0 | Q7: 0 | R7: 0 | S7: 0 | T7: 0 | U7: 0 | V7: 0 | W7: 0 | X7: 0 | Y7: 0 | Z7: 0 | AA7: 0 | AB7: 0 | AC7: 0 | AD7: 0 | AE7: 0 | AF7: 0 | AG7: 0 | AH7: 0 | AI7: 0 | AJ7: 0 | AK7: 0 | AL7: 0 | AM7: 0 | AN7: 0 | AO7: 0 | AP7: 0 | AQ7: 0 | AR7: 0 | AS7: 0 | AT7: 0 | AU7: 0 | AV7: 0 | AW7: 0 | AX7: 0 | AY7: 0 | AZ7: 0 | BA7: 0 | BB7: 0 | BC7: 0 | BD7: 0 | BE7: 0 | BF7: 0 | BG7: 0 | BH7: 0 | BI7: 0 | BJ7: 0 | BK7: 0 | BL7: 0 | BM7: 0 | BN7: 0 | BO7: 0 | BP7: 0 | BQ7: 0 | BR7: 0 | BS7: 0 | BT7: 0
B9: Original | C9: Crashed
A10: Path | B10: Path | C10: Path
A11: Number | B11: Length | C11: Length
A12: 1 | B12: 644 | C12: =B12-SUMPRODUCT(E$7:GU$7,E12:GU12) -> 641 | E12: 1 | F12: 1 | H12: 1 | N12: 1 | T12: 1 | Y12: 1 | AG12: 1 | AV12: 1 | AZ12: 1 | BC12: 1 | BG12: 1 | BI12: 1 | BJ12: 1 | BK12: 1 | BL12: 1 | BM12: 1 | BN12: 1 | BO12: 1 | BP12: 1 | BS12: 1 | BT12: 1
A13: 2 | B13: 644 | C13: =B13-SUMPRODUCT(E$7:GU$7,E13:GU13) -> 641 | E13: 1 | F13: 1 | H13: 1 | N13: 1 | T13: 1 | Y13: 1 | AG13: 1 | AV13: 1 | AZ13: 1 | BC13: 1 | BG13: 1 | BI13: 1 | BJ13: 1 | BK13: 1 | BL13: 1 | BM13: 1 | BN13: 1 | BO13: 1 | BQ13: 1 | BS13: 1 | BT13: 1
A14: 3 | B14: 636 | C14: =B14-SUMPRODUCT(E$7:GU$7,E14:GU14) -> 633 | E14: 1 | F14: 1 | H14: 1 | N14: 1 | T14: 1 | Y14: 1 | AG14: 1 | AV14: 1 | AZ14: 1 | BC14: 1 | BG14: 1 | BI14: 1 | BJ14: 1 | BK14: 1 | BL14: 1 | BM14: 1 | BN14: 1 | BO14: 1 | BP14: 1 | BR14: 1 | BT14: 1
A15: 4 | B15: 636 | C15: =B15-SUMPRODUCT(E$7:GU$7,E15:GU15) -> 636 | E15: 1 | F15: 1 | G15: 1 | N15: 1 | T15: 1 | Y15: 1 | AG15: 1 | AV15: 1 | AZ15: 1 | BC15: 1 | BG15: 1 | BI15: 1 | BJ15: 1 | BK15: 1 | BL15: 1 | BM15: 1 | BN15: 1 | BO15: 1 | BP15: 1 | BS15: 1 | BT15: 1
A16: 5 | B16: 636 | C16: =B16-SUMPRODUCT(E$7:GU$7,E16:GU16) -> 636 | E16: 1 | F16: 1 | G16: 1 | N16: 1 | T16: 1 | Y16: 1 | AG16: 1 | AV16: 1 | AZ16: 1 | BC16: 1 | BG16: 1 | BI16: 1 | BJ16: 1 | BK16: 1 | BL16: 1 | BM16: 1 | BN16: 1 | BO16: 1 | BQ16: 1 | BS16: 1 | BT16: 1
A17: 6 | B17: 628 | C17: =B17-SUMPRODUCT(E$7:GU$7,E17:GU17) -> 628 | E17: 1 | F17: 1 | G17: 1 | N17: 1 | T17: 1 | Y17: 1 | AG17: 1 | AV17: 1 | AZ17: 1 | BC17: 1 | BG17: 1 | BI17: 1 | BJ17: 1 | BK17: 1 | BL17: 1 | BM17: 1 | BN17: 1 | BO17: 1 | BP17: 1 | BR17: 1 | BT17: 1
A18: 7 | B18: 628 | C18: =B18-SUMPRODUCT(E$7:GU$7,E18:GU18) -> 625 | E18: 1 | F18: 1 | H18: 1 | L18: 1 | R18: 1 | U18: 1 | AW18: 1 | AX18: 1 | AY18: 1 | BB18: 1 | BE18: 1 | BH18: 1 | BJ18: 1 | BK18: 1 | BL18: 1 | BM18: 1 | BN18: 1 | BO18: 1 | BP18: 1 | BS18: 1 | BT18: 1
A19: 8 | B19: 628 | C19: =B19-SUMPRODUCT(E$7:GU$7,E19:GU19) -> 625 | E19: 1 | F19: 1 | H19: 1 | L19: 1 | R19: 1 | U19: 1 | AW19: 1 | AX19: 1 | AY19: 1 | BB19: 1 | BE19: 1 | BH19: 1 | BJ19: 1 | BK19: 1 | BL19: 1 | BM19: 1 | BN19: 1 | BO19: 1 | BQ19: 1 | BS19: 1 | BT19: 1
A20: 9 | B20: 620 | C20: =B20-SUMPRODUCT(E$7:GU$7,E20:GU20) -> 617 | E20: 1 | F20: 1 | H20: 1 | L20: 1 | R20: 1 | U20: 1 | AW20: 1 | AX20: 1 | AY20: 1 | BB20: 1 | BE20: 1 | BH20: 1 | BJ20: 1 | BK20: 1 | BL20: 1 | BM20: 1 | BN20: 1 | BO20: 1 | BP20: 1 | BR20: 1 | BT20: 1
A21: 10 | B21: 620 | C21: =B21-SUMPRODUCT(E$7:GU$7,E21:GU21) -> 620 | E21: 1 | F21: 1 | G21: 1 | L21: 1 | R21: 1 | U21: 1 | AW21: 1 | AX21: 1 | AY21: 1 | BB21: 1 | BE21: 1 | BH21: 1 | BJ21: 1 | BK21: 1 | BL21: 1 | BM21: 1 | BN21: 1 | BO21: 1 | BQ21: 1 | BS21: 1 | BT21: 1
A22: 11 | B22: 620 | C22: =B22-SUMPRODUCT(E$7:GU$7,E22:GU22) -> 620 | E22: 1 | F22: 1 | G22: 1 | L22: 1 | R22: 1 | U22: 1 | AW22: 1 | AX22: 1 | AY22: 1 | BB22: 1 | BE22: 1 | BH22: 1 | BJ22: 1 | BK22: 1 | BL22: 1 | BM22: 1 | BN22: 1 | BO22: 1 | BP22: 1 | BS22: 1 | BT22: 1
A23: 12 | B23: 612 | C23: =B23-SUMPRODUCT(E$7:GU$7,E23:GU23) -> 612 | E23: 1 | F23: 1 | G23: 1 | L23: 1 | R23: 1 | U23: 1 | AW23: 1 | AX23: 1 | AY23: 1 | BB23: 1 | BE23: 1 | BH23: 1 | BJ23: 1 | BK23: 1 | BL23: 1 | BM23: 1 | BN23: 1 | BO23: 1 | BP23: 1 | BR23: 1 | BT23: 1
A24: 13 | B24: 604 | C24: =B24-SUMPRODUCT(E$7:GU$7,E24:GU24) -> 601 | E24: 1 | F24: 1 | H24: 1 | M24: 1 | S24: 1 | AB24: 1 | AF24: 1 | AN24: 1 | AQ24: 1 | AT24: 1 | BA24: 1 | BD24: 1 | BF24: 1 | BJ24: 1 | BK24: 1 | BL24: 1 | BM24: 1 | BN24: 1 | BO24: 1 | BQ24: 1 | BS24: 1 | BT24: 1
A25: 14 | B25: 604 | C25: =B25-SUMPRODUCT(E$7:GU$7,E25:GU25) -> 601 | E25: 1 | F25: 1 | H25: 1 | M25: 1 | S25: 1 | AB25: 1 | AF25: 1 | AN25: 1 | AQ25: 1 | AT25: 1 | BA25: 1 | BD25: 1 | BF25: 1 | BJ25: 1 | BK25: 1 | BL25: 1 | BM25: 1 | BN25: 1 | BO25: 1 | BP25: 1 | BS25: 1 | BT25: 1
A26: 15 | B26: 596 | C26: =B26-SUMPRODUCT(E$7:GU$7,E26:GU26) -> 593 | E26: 1 | F26: 1 | H26: 1 | M26: 1 | S26: 1 | AB26: 1 | AF26: 1 | AN26: 1 | AQ26: 1 | AT26: 1 | BA26: 1 | BD26: 1 | BF26: 1 | BJ26: 1 | BK26: 1 | BL26: 1 | BM26: 1 | BN26: 1 | BO26: 1 | BP26: 1 | BR26: 1 | BT26: 1
A27: 16 | B27: 596 | C27: =B27-SUMPRODUCT(E$7:GU$7,E27:GU27) -> 596 | E27: 1 | F27: 1 | G27: 1 | M27: 1 | S27: 1 | AB27: 1 | AF27: 1 | AN27: 1 | AQ27: 1 | AT27: 1 | BA27: 1 | BD27: 1 | BF27: 1 | BJ27: 1 | BK27: 1 | BL27: 1 | BM27: 1 | BN27: 1 | BO27: 1 | BP27: 1 | BS27: 1 | BT27: 1
A28: 17 | B28: 596 | C28: =B28-SUMPRODUCT(E$7:GU$7,E28:GU28) -> 596 | E28: 1 | F28: 1 | G28: 1 | M28: 1 | S28: 1 | AB28: 1 | AF28: 1 | AN28: 1 | AQ28: 1 | AT28: 1 | BA28: 1 | BD28: 1 | BF28: 1 | BJ28: 1 | BK28: 1 | BL28: 1 | BM28: 1 | BN28: 1 | BO28: 1 | BQ28: 1 | BS28: 1 | BT28: 1
A29: 18 | B29: 588 | C29: =B29-SUMPRODUCT(E$7:GU$7,E29:GU29) -> 588 | E29: 1 | F29: 1 | G29: 1 | M29: 1 | S29: 1 | AB29: 1 | AF29: 1 | AN29: 1 | AQ29: 1 | AT29: 1 | BA29: 1 | BD29: 1 | BF29: 1 | BJ29: 1 | BK29: 1 | BL29: 1 | BM29: 1 | BN29: 1 | BO29: 1 | BP29: 1 | BR29: 1 | BT29: 1
A30: 19 | B30: 516 | C30: =B30-SUMPRODUCT(E$7:GU$7,E30:GU30) -> 513 | E30: 1 | H30: 1 | I30: 1 | V30: 1 | W30: 1 | AA30: 1 | AJ30: 1 | AM30: 1 | AO30: 1 | AP30: 1 | AR30: 1 | AS30: 1 | AU30: 1 | BJ30: 1 | BK30: 1 | BL30: 1 | BM30: 1 | BN30: 1 | BO30: 1 | BP30: 1 | BS30: 1 | BT30: 1
A31: 20 | B31: 516 | C31: =B31-SUMPRODUCT(E$7:GU$7,E31:GU31) -> 513 | E31: 1 | H31: 1 | I31: 1 | V31: 1 | W31: 1 | AA31: 1 | AJ31: 1 | AM31: 1 | AO31: 1 | AP31: 1 | AR31: 1 | AS31: 1 | AU31: 1 | BJ31: 1 | BK31: 1 | BL31: 1 | BM31: 1 | BN31: 1 | BO31: 1 | BQ31: 1 | BS31: 1 | BT31: 1
A32: 21 | B32: 508 | C32: =B32-SUMPRODUCT(E$7:GU$7,E32:GU32) -> 505 | E32: 1 | H32: 1 | I32: 1 | V32: 1 | W32: 1 | AA32: 1 | AJ32: 1 | AM32: 1 | AO32: 1 | AP32: 1 | AR32: 1 | AS32: 1 | AU32: 1 | BJ32: 1 | BK32: 1 | BL32: 1 | BM32: 1 | BN32: 1 | BO32: 1 | BP32: 1 | BR32: 1 | BT32: 1
A33: 22 | B33: 508 | C33: =B33-SUMPRODUCT(E$7:GU$7,E33:GU33) -> 508 | E33: 1 | G33: 1 | I33: 1 | V33: 1 | W33: 1 | AA33: 1 | AJ33: 1 | AM33: 1 | AO33: 1 | AP33: 1 | AR33: 1 | AS33: 1 | AU33: 1 | BJ33: 1 | BK33: 1 | BL33: 1 | BM33: 1 | BN33: 1 | BO33: 1 | BQ33: 1 | BS33: 1 | BT33: 1
A34: 23 | B34: 508 | C34: =B34-SUMPRODUCT(E$7:GU$7,E34:GU34) -> 508 | E34: 1 | G34: 1 | I34: 1 | V34: 1 | W34: 1 | AA34: 1 | AJ34: 1 | AM34: 1 | AO34: 1 | AP34: 1 | AR34: 1 | AS34: 1 | AU34: 1 | BJ34: 1 | BK34: 1 | BL34: 1 | BM34: 1 | BN34: 1 | BO34: 1 | BP34: 1 | BS34: 1 | BT34: 1
A35: 24 | B35: 500 | C35: =B35-SUMPRODUCT(E$7:GU$7,E35:GU35) -> 500 | E35: 1 | G35: 1 | I35: 1 | V35: 1 | W35: 1 | AA35: 1 | AJ35: 1 | AM35: 1 | AO35: 1 | AP35: 1 | AR35: 1 | AS35: 1 | AU35: 1 | BJ35: 1 | BK35: 1 | BL35: 1 | BM35: 1 | BN35: 1 | BO35: 1 | BP35: 1 | BR35: 1 | BT35: 1
A36: 25 | B36: 396 | C36: =B36-SUMPRODUCT(E$7:GU$7,E36:GU36) -> 393 | E36: 1 | F36: 1 | H36: 1 | O36: 1 | Z36: 1 | AE36: 1 | AI36: 1 | AL36: 1 | BJ36: 1 | BK36: 1 | BL36: 1 | BM36: 1 | BN36: 1 | BO36: 1 | BQ36: 1 | BS36: 1 | BT36: 1
A37: 26 | B37: 396 | C37: =B37-SUMPRODUCT(E$7:GU$7,E37:GU37) -> 393 | E37: 1 | F37: 1 | H37: 1 | O37: 1 | Z37: 1 | AE37: 1 | AI37: 1 | AL37: 1 | BJ37: 1 | BK37: 1 | BL37: 1 | BM37: 1 | BN37: 1 | BO37: 1 | BP37: 1 | BS37: 1 | BT37: 1
A38: 27 | B38: 388 | C38: =B38-SUMPRODUCT(E$7:GU$7,E38:GU38) -> 385 | E38: 1 | F38: 1 | H38: 1 | O38: 1 | Z38: 1 | AE38: 1 | AI38: 1 | AL38: 1 | BJ38: 1 | BK38: 1 | BL38: 1 | BM38: 1 | BN38: 1 | BO38: 1 | BP38: 1 | BR38: 1 | BT38: 1
A39: 28 | B39: 388 | C39: =B39-SUMPRODUCT(E$7:GU$7,E39:GU39) -> 388 | E39: 1 | F39: 1 | G39: 1 | O39: 1 | Z39: 1 | AE39: 1 | AI39: 1 | AL39: 1 | BJ39: 1 | BK39: 1 | BL39: 1 | BM39: 1 | BN39: 1 | BO39: 1 | BP39: 1 | BS39: 1 | BT39: 1
A40: 29 | B40: 388 | C40: =B40-SUMPRODUCT(E$7:GU$7,E40:GU40) -> 388 | E40: 1 | F40: 1 | G40: 1 | O40: 1 | Z40: 1 | AE40: 1 | AI40: 1 | AL40: 1 | BJ40: 1 | BK40: 1 | BL40: 1 | BM40: 1 | BN40: 1 | BO40: 1 | BQ40: 1 | BS40: 1 | BT40: 1
A41: 30 | B41: 380 | C41: =B41-SUMPRODUCT(E$7:GU$7,E41:GU41) -> 380 | E41: 1 | F41: 1 | G41: 1 | O41: 1 | Z41: 1 | AE41: 1 | AI41: 1 | AL41: 1 | BJ41: 1 | BK41: 1 | BL41: 1 | BM41: 1 | BN41: 1 | BO41: 1 | BP41: 1 | BR41: 1 | BT41: 1
A42: 31 | B42: 340 | C42: =B42-SUMPRODUCT(E$7:GU$7,E42:GU42) -> 337 | E42: 1 | H42: 1 | J42: 1 | AC42: 1 | AD42: 1 | AH42: 1 | AK42: 1 | BL42: 1 | BM42: 1 | BN42: 1 | BO42: 1 | BP42: 1 | BS42: 1 | BT42: 1
A43: 32 | B43: 340 | C43: =B43-SUMPRODUCT(E$7:GU$7,E43:GU43) -> 337 | E43: 1 | H43: 1 | J43: 1 | AC43: 1 | AD43: 1 | AH43: 1 | AK43: 1 | BL43: 1 | BM43: 1 | BN43: 1 | BO43: 1 | BQ43: 1 | BS43: 1 | BT43: 1
A44: 33 | B44: 332 | C44: =B44-SUMPRODUCT(E$7:GU$7,E44:GU44) -> 329 | E44: 1 | H44: 1 | J44: 1 | AC44: 1 | AD44: 1 | AH44: 1 | AK44: 1 | BL44: 1 | BM44: 1 | BN44: 1 | BO44: 1 | BP44: 1 | BR44: 1 | BT44: 1
A45: 34 | B45: 332 | C45: =B45-SUMPRODUCT(E$7:GU$7,E45:GU45) -> 332 | E45: 1 | G45: 1 | J45: 1 | AC45: 1 | AD45: 1 | AH45: 1 | AK45: 1 | BL45: 1 | BM45: 1 | BN45: 1 | BO45: 1 | BQ45: 1 | BS45: 1 | BT45: 1
A46: 35 | B46: 332 | C46: =B46-SUMPRODUCT(E$7:GU$7,E46:GU46) -> 332 | E46: 1 | G46: 1 | J46: 1 | AC46: 1 | AD46: 1 | AH46: 1 | AK46: 1 | BL46: 1 | BM46: 1 | BN46: 1 | BO46: 1 | BP46: 1 | BS46: 1 | BT46: 1
A47: 36 | B47: 324 | C47: =B47-SUMPRODUCT(E$7:GU$7,E47:GU47) -> 324 | E47: 1 | G47: 1 | J47: 1 | AC47: 1 | AD47: 1 | AH47: 1 | AK47: 1 | BL47: 1 | BM47: 1 | BN47: 1 | BO47: 1 | BP47: 1 | BR47: 1 | BT47: 1
A48: 37 | B48: 308 | C48: =B48-SUMPRODUCT(E$7:GU$7,E48:GU48) -> 305 | E48: 1 | F48: 1 | H48: 1 | K48: 1 | Q48: 1 | X48: 1 | BJ48: 1 | BK48: 1 | BL48: 1 | BM48: 1 | BN48: 1 | BO48: 1 | BP48: 1 | BS48: 1 | BT48: 1
A49: 38 | B49: 308 | C49: =B49-SUMPRODUCT(E$7:GU$7,E49:GU49) -> 305 | E49: 1 | F49: 1 | H49: 1 | K49: 1 | Q49: 1 | X49: 1 | BJ49: 1 | BK49: 1 | BL49: 1 | BM49: 1 | BN49: 1 | BO49: 1 | BQ49: 1 | BS49: 1 | BT49: 1
A50: 39 | B50: 300 | C50: =B50-SUMPRODUCT(E$7:GU$7,E50:GU50) -> 297 | E50: 1 | F50: 1 | H50: 1 | K50: 1 | Q50: 1 | X50: 1 | BJ50: 1 | BK50: 1 | BL50: 1 | BM50: 1 | BN50: 1 | BO50: 1 | BP50: 1 | BR50: 1 | BT50: 1
A51: 40 | B51: 300 | C51: =B51-SUMPRODUCT(E$7:GU$7,E51:GU51) -> 300 | E51: 1 | F51: 1 | G51: 1 | K51: 1 | Q51: 1 | X51: 1 | BJ51: 1 | BK51: 1 | BL51: 1 | BM51: 1 | BN51: 1 | BO51: 1 | BP51: 1 | BS51: 1 | BT51: 1
A52: 41 | B52: 300 | C52: =B52-SUMPRODUCT(E$7:GU$7,E52:GU52) -> 300 | E52: 1 | F52: 1 | G52: 1 | K52: 1 | Q52: 1 | X52: 1 | BJ52: 1 | BK52: 1 | BL52: 1 | BM52: 1 | BN52: 1 | BO52: 1 | BQ52: 1 | BS52: 1 | BT52: 1
A53: 42 | B53: 292 | C53: =B53-SUMPRODUCT(E$7:GU$7,E53:GU53) -> 292 | E53: 1 | F53: 1 | G53: 1 | K53: 1 | Q53: 1 | X53: 1 | BJ53: 1 | BK53: 1 | BL53: 1 | BM53: 1 | BN53: 1 | BO53: 1 | BP53: 1 | BR53: 1 | BT53: 1
A54: 43 | B54: 260 | C54: =B54-SUMPRODUCT(E$7:GU$7,E54:GU54) -> 257 | E54: 1 | F54: 1 | H54: 1 | K54: 1 | P54: 1 | X54: 1 | BJ54: 1 | BK54: 1 | BL54: 1 | BM54: 1 | BN54: 1 | BO54: 1 | BQ54: 1 | BS54: 1 | BT54: 1
A55: 44 | B55: 260 | C55: =B55-SUMPRODUCT(E$7:GU$7,E55:GU55) -> 257 | E55: 1 | F55: 1 | H55: 1 | K55: 1 | P55: 1 | X55: 1 | BJ55: 1 | BK55: 1 | BL55: 1 | BM55: 1 | BN55: 1 | BO55: 1 | BP55: 1 | BS55: 1 | BT55: 1
A56: 45 | B56: 252 | C56: =B56-SUMPRODUCT(E$7:GU$7,E56:GU56) -> 249 | E56: 1 | F56: 1 | H56: 1 | K56: 1 | P56: 1 | X56: 1 | BJ56: 1 | BK56: 1 | BL56: 1 | BM56: 1 | BN56: 1 | BO56: 1 | BP56: 1 | BR56: 1 | BT56: 1
A57: 46 | B57: 252 | C57: =B57-SUMPRODUCT(E$7:GU$7,E57:GU57) -> 252 | E57: 1 | F57: 1 | G57: 1 | K57: 1 | P57: 1 | X57: 1 | BJ57: 1 | BK57: 1 | BL57: 1 | BM57: 1 | BN57: 1 | BO57: 1 | BQ57: 1 | BS57: 1 | BT57: 1
A58: 47 | B58: 252 | C58: =B58-SUMPRODUCT(E$7:GU$7,E58:GU58) -> 252 | E58: 1 | F58: 1 | G58: 1 | K58: 1 | P58: 1 | X58: 1 | BJ58: 1 | BK58: 1 | BL58: 1 | BM58: 1 | BN58: 1 | BO58: 1 | BP58: 1 | BS58: 1 | BT58: 1
A59: 48 | B59: 244 | C59: =B59-SUMPRODUCT(E$7:GU$7,E59:GU59) -> 244 | E59: 1 | F59: 1 | G59: 1 | K59: 1 | P59: 1 | X59: 1 | BJ59: 1 | BK59: 1 | BL59: 1 | BM59: 1 | BN59: 1 | BO59: 1 | BP59: 1 | BR59: 1 | BT59: 1

Sheet lpformulation
A1: Activity Number | E1: 1 | F1: 2 | G1: 3 | H1: 4 | I1: 5 | J1: 6 | K1: 7 | L1: 8 | M1: 9 | N1: 10 | O1: 11 | P1: 12 | Q1: 13 | R1: 14 | S1: 15 | T1: 16 | U1: 17 | V1: 18 | W1: 19 | X1: 20 | Y1: 21 | Z1: 22 | AA1: 23 | AB1: 24 | AC1: 25 | AD1: 26 | AE1: 27 | AF1: 28 | AG1: 29 | AH1: 30 | AI1: 31 | AJ1: 32 | AK1: 33 | AL1: 34 | AM1: 35 | AN1: 36 | AO1: 37 | AP1: 38 | AQ1: 39 | AR1: 40 | AS1: 41 | AT1: 42 | AU1: 43 | AV1: 44 | AW1: 45 | AX1: 46 | AY1: 47 | AZ1: 48 | BA1: 49 | BB1: 50 | BC1: 51 | BD1: 52 | BE1: 53 | BF1: 54 | BG1: 55 | BH1: 56 | BI1: 57 | BJ1: 58 | BK1: 59 | BL1: 60 | BM1: 61 | BN1: 62 | BO1: 63 | BP1: 64 | BQ1: 65 | BR1: 66 | BS1: 67 | BT1: 68
B2: Objective = | C2: =SUMPRODUCT(E$3:GU$3,E$7:GU$7) -> 696949.24
A3: Crashing Costs | E3: 0 | F3: 0 | G3: 0 | H3: 14788.87 | I3: 0 | J3: 0 | K3: 14788.87 | L3: 0 | M3: 0 | N3: 0 | O3: 0 | P3: 14788.87 | Q3: 43617.67 | R3: 0 | S3: 0 | T3: 0 | U3: 0 | V3: 0 | W3: 0 | X3: 0 | Y3: 0 | Z3: 0 | AA3: 0 | AB3: 0 | AC3: 0 | AD3: 0 | AE3: 0 | AF3: 0 | AG3: 0 | AH3: 5179.27 | AI3: 7581.67 | AJ3: 0 | AK3: 14788.87 | AL3: 14788.87 | AM3: 0 | AN3: 0 | AO3: 7581.67 | AP3: 7581.67 | AQ3: 0 | AR3: 0 | AS3: 14788.87 | AT3: 0 | AU3: 5179.27 | AV3: 0 | AW3: 0 | AX3: 0 | AY3: 0 | AZ3: 0 | BA3: 0 | BB3: 0 | BC3: 0 | BD3: 7581.67 | BE3: 7581.67 | BF3: 14788.87 | BG3: 7581.67 | BH3: 5179.27 | BI3: 5179.27 | BJ3: 14788.87 | BK3: 21996.07 | BL3: 14788.87 | BM3: 0 | BN3: 14788.87 | BO3: 14788.87 | BP3: 0 | BQ3: 0 | BR3: 0 | BS3: 14788.87 | BT3: 0
A5: Maximum Crashing | E5: 0 | F5: 0 | G5: 0 | H5: 4 | I5: 0 | J5: 0 | K5: 2 | L5: 0 | M5: 0 | N5: 0 | O5: 0 | P5: 4 | Q5: 8 | R5: 0 | S5: 0 | T5: 0 | U5: 0 | V5: 0 | W5: 0 | X5: 0 | Y5: 0 | Z5: 0 | AA5: 0 | AB5: 0 | AC5: 0 | AD5: 0 | AE5: 0 | AF5: 0 | AG5: 0 | AH5: 9 | AI5: 8 | AJ5: 0 | AK5: 2 | AL5: 2 | AM5: 0 | AN5: 0 | AO5: 8 | AP5: 8 | AQ5: 0 | AR5: 0 | AS5: 2 | AT5: 0 | AU5: 6 | AV5: 0 | AW5: 0 | AX5: 0 | AY5: 0 | AZ5: 0 | BA5: 0 | BB5: 0 | BC5: 0 | BD5: 8 | BE5: 8 | BF5: 2 | BG5: 8 | BH5: 6 | BI5: 6 | BJ5: 2 | BK5: 8 | BL5: 1 | BM5: 0 | BN5: 1 | BO5: 20 | BP5: 0 | BQ5: 0 | BR5: 0 | BS5: 4 | BT5: 0
A7: Decision Variables (Periods Crashed) | E7: 0 | F7: 0 | G7: 0 | H7: 4 | I7: 0 | J7: 0 | K7: 0 | L7: 0 | M7: 0 | N7: 0 | O7: 0 | P7: 0 | Q7: 0 | R7: 0 | S7: 0 | T7: 0 | U7: 0 | V7: 0 | W7: 0 | X7: 0 | Y7: 0 | Z7: 0 | AA7: 0 | AB7: 0 | AC7: 0 | AD7: 0 | AE7: 0 | AF7: 0 | AG7: 0 | AH7: 0 | AI7: 0 | AJ7: 0 | AK7: 0 | AL7: 0 | AM7: 0 | AN7: 0 | AO7: 0 | AP7: 0 | AQ7: 0 | AR7: 0 | AS7: 0 | AT7: 0 | AU7: 0 | AV7: 0 | AW7: 0 | AX7: 0 | AY7: 0 | AZ7: 0 | BA7: 0 | BB7: 0 | BC7: 0 | BD7: 0 | BE7: 0 | BF7: 0 | BG7: 8 | BH7: 0 | BI7: 6 | BJ7: 2 | BK7: 6 | BL7: 1 | BM7: 0 | BN7: 1 | BO7: 20 | BP7: 0 | BQ7: 0 | BR7: 0 | BS7: 4 | BT7: 0
B9: Constraint | C9: Constraint
A10: Path Number | B10: LHS | C10: RHS
A11: 1 | B11: =SUMPRODUCT(E$7:GT$7,E11:GT11) -> 52 | C11: 52 | E11: 1 | F11: 1 | H11: 1 | N11: 1 | T11: 1 | Y11: 1 | AG11: 1 | AV11: 1 | AZ11: 1 | BC11: 1 | BG11: 1 | BI11: 1 | BJ11: 1 | BK11: 1 | BL11: 1 | BM11: 1 | BN11: 1 | BO11: 1 | BP11: 1 | BS11: 1 | BT11: 1
A12: 2 | B12: =SUMPRODUCT(E$7:GT$7,E12:GT12) -> 52 | C12: 52 | E12: 1 | F12: 1 | H12: 1 | N12: 1 | T12: 1 | Y12: 1 | AG12: 1 | AV12: 1 | AZ12: 1 | BC12: 1 | BG12: 1 | BI12: 1 | BJ12: 1 | BK12: 1 | BL12: 1 | BM12: 1 | BN12: 1 | BO12: 1 | BQ12: 1 | BS12: 1 | BT12: 1
A13: 3 | B13: =SUMPRODUCT(E$7:GT$7,E13:GT13) -> 48 | C13: 44 | E13: 1 | F13: 1 | H13: 1 | N13: 1 | T13: 1 | Y13: 1 | AG13: 1 | AV13: 1 | AZ13: 1 | BC13: 1 | BG13: 1 | BI13: 1 | BJ13: 1 | BK13: 1 | BL13: 1 | BM13: 1 | BN13: 1 | BO13: 1 | BP13: 1 | BR13: 1 | BT13: 1
A14: 4 | B14: =SUMPRODUCT(E$7:GT$7,E14:GT14) -> 48 | C14: 44 | E14: 1 | F14: 1 | G14: 1 | N14: 1 | T14: 1 | Y14: 1 | AG14: 1 | AV14: 1 | AZ14: 1 | BC14: 1 | BG14: 1 | BI14: 1 | BJ14: 1 | BK14: 1 | BL14: 1 | BM14: 1 | BN14: 1 | BO14: 1 | BP14: 1 | BS14: 1 | BT14: 1
A15: 5 | B15: =SUMPRODUCT(E$7:GT$7,E15:GT15) -> 48 | C15: 44 | E15: 1 | F15: 1 | G15: 1 | N15: 1 | T15: 1 | Y15: 1 | AG15: 1 | AV15: 1 | AZ15: 1 | BC15: 1 | BG15: 1 | BI15: 1 | BJ15: 1 | BK15: 1 | BL15: 1 | BM15: 1 | BN15: 1 | BO15: 1 | BQ15: 1 | BS15: 1 | BT15: 1
A16: 6 | B16: =SUMPRODUCT(E$7:GT$7,E16:GT16) -> 44 | C16: 36 | E16: 1 | F16: 1 | G16: 1 | N16: 1 | T16: 1 | Y16: 1 | AG16: 1 | AV16: 1 | AZ16: 1 | BC16: 1 | BG16: 1 | BI16: 1 | BJ16: 1 | BK16: 1 | BL16: 1 | BM16: 1 | BN16: 1 | BO16: 1 | BP16: 1 | BR16: 1 | BT16: 1
A17: 7 | B17: =SUMPRODUCT(E$7:GT$7,E17:GT17) -> 38 | C17: 36 | E17: 1 | F17: 1 | H17: 1 | L17: 1 | R17: 1 | U17: 1 | AW17: 1 | AX17: 1 | AY17: 1 | BB17: 1 | BE17: 1 | BH17: 1 | BJ17: 1 | BK17: 1 | BL17: 1 | BM17: 1 | BN17: 1 | BO17: 1 | BP17: 1 | BS17: 1 | BT17: 1
A18: 8 | B18: =SUMPRODUCT(E$7:GT$7,E18:GT18) -> 38 | C18: 36 | E18: 1 | F18: 1 | H18: 1 | L18: 1 | R18: 1 | U18: 1 | AW18: 1 | AX18: 1 | AY18: 1 | BB18: 1 | BE18: 1 | BH18: 1 | BJ18: 1 | BK18: 1 | BL18: 1 | BM18: 1 | BN18: 1 | BO18: 1 | BQ18: 1 | BS18: 1 | BT18: 1
A19: 9 | B19: =SUMPRODUCT(E$7:GT$7,E19:GT19) -> 34 | C19: 28 | E19: 1 | F19: 1 | H19: 1 | L19: 1 | R19: 1 | U19: 1 | AW19: 1 | AX19: 1 | AY19: 1 | BB19: 1 | BE19: 1 | BH19: 1 | BJ19: 1 | BK19: 1 | BL19: 1 | BM19: 1 | BN19: 1 | BO19: 1 | BP19: 1 | BR19: 1 | BT19: 1
A20: 10 | B20: =SUMPRODUCT(E$7:GT$7,E20:GT20) -> 34 | C20: 28 | E20: 1 | F20: 1 | G20: 1 | L20: 1 | R20: 1 | U20: 1 | AW20: 1 | AX20: 1 | AY20: 1 | BB20: 1 | BE20: 1 | BH20: 1 | BJ20: 1 | BK20: 1 | BL20: 1 | BM20: 1 | BN20: 1 | BO20: 1 | BQ20: 1 | BS20: 1 | BT20: 1
A21: 11 | B21: =SUMPRODUCT(E$7:GT$7,E21:GT21) -> 34 | C21: 28 | E21: 1 | F21: 1 | G21: 1 | L21: 1 | R21: 1 | U21: 1 | AW21: 1 | AX21: 1 | AY21: 1 | BB21: 1 | BE21: 1 | BH21: 1 | BJ21: 1 | BK21: 1 | BL21: 1 | BM21: 1 | BN21: 1 | BO21: 1 | BP21: 1 | BS21: 1 | BT21: 1
A22: 12 | B22: =SUMPRODUCT(E$7:GT$7,E22:GT22) -> 30 | C22: 20 | E22: 1 | F22: 1 | G22: 1 | L22: 1 | R22: 1 | U22: 1 | AW22: 1 | AX22: 1 | AY22: 1 | BB22: 1 | BE22: 1 | BH22: 1 | BJ22: 1 | BK22: 1 | BL22: 1 | BM22: 1 | BN22: 1 | BO22: 1 | BP22: 1 | BR22: 1 | BT22: 1
A23: 13 | B23: =SUMPRODUCT(E$7:GT$7,E23:GT23) -> 38 | C23: 12 | E23: 1 | F23: 1 | H23: 1 | M23: 1 | S23: 1 | AB23: 1 | AF23: 1 | AN23: 1 | AQ23: 1 | AT23: 1 | BA23: 1 | BD23: 1 | BF23: 1 | BJ23: 1 | BK23: 1 | BL23: 1 | BM23: 1 | BN23: 1 | BO23: 1 | BQ23: 1 | BS23: 1 | BT23: 1
A24: 14 | B24: =SUMPRODUCT(E$7:GT$7,E24:GT24) -> 38 | C24: 12 | E24: 1 | F24: 1 | H24: 1 | M24: 1 | S24: 1 | AB24: 1 | AF24: 1 | AN24: 1 | AQ24: 1 | AT24: 1 | BA24: 1 | BD24: 1 | BF24: 1 | BJ24: 1 | BK24: 1 | BL24: 1 | BM24: 1 | BN24: 1 | BO24: 1 | BP24: 1 | BS24: 1 | BT24: 1
A25: 15 | B25: =SUMPRODUCT(E$7:GT$7,E25:GT25) -> 34 | C25: 4 | E25: 1 | F25: 1 | H25: 1 | M25: 1 | S25: 1 | AB25: 1 | AF25: 1 | AN25: 1 | AQ25: 1 | AT25: 1 | BA25: 1 | BD25: 1 | BF25: 1 | BJ25: 1 | BK25: 1 | BL25: 1 | BM25: 1 | BN25: 1 | BO25: 1 | BP25: 1 | BR25: 1 | BT25: 1
A26: 16 | B26: =SUMPRODUCT(E$7:GT$7,E26:GT26) -> 34 | C26: 4 | E26: 1 | F26: 1 | G26: 1 | M26: 1 | S26: 1 | AB26: 1 | AF26: 1 | AN26: 1 | AQ26: 1 | AT26: 1 | BA26: 1 | BD26: 1 | BF26: 1 | BJ26: 1 | BK26: 1 | BL26: 1 | BM26: 1 | BN26: 1 | BO26: 1 | BP26: 1 | BS26: 1 | BT26: 1
A27: 17 | B27: =SUMPRODUCT(E$7:GT$7,E27:GT27) -> 34 | C27: 4 | E27: 1 | F27: 1 | G27: 1 | M27: 1 | S27: 1 | AB27: 1 | AF27: 1 | AN27: 1 | AQ27: 1 | AT27: 1 | BA27: 1 | BD27: 1 | BF27: 1 | BJ27: 1 | BK27: 1 | BL27: 1 | BM27: 1 | BN27: 1 | BO27: 1 | BQ27: 1 | BS27: 1 | BT27: 1

Sheet tc10
B1: Number of Activities = | E1: 10
B2: Target Completion Time = | E2: 20
F3: Number of
C4: Normal | D4: Max | E4: Crash | F4: Immediate | G4: Immediate
B5: Act # | C5: Time | D5: Crash | E5: Cost | F5: Predecessors | G5: Predecessors
A6: Dummy Start Node | B6: 1 | C6: 0 | D6: 0 | E6: 0 | F6: 0
A7: Activty 1 | B7: 2 | C7: 10 | D7: 4 | E7: 700 | F7: 1 | G7: 1
A8: Activty 2 | B8: 3 | C8: 7 | D8: 2 | E8: 400 | F8: 1 | G8: 1
A9: Activty 3 | B9: 4 | C9: 8 | D9: 4 | E9: 300 | F9: 1 | G9: 1
A10: Activty 4 | B10: 5 | C10: 9 | D10: 3 | E10: 600 | F10: 2 | G10: 2 | H10: 3
A11: Activty 5 | B11: 6 | C11: 7 | D11: 1 | E11: 900 | F11: 2 | G11: 3 | H11: 4
A12: Activty 6 | B12: 7 | C12: 5 | D12: 2 | E12: 300 | F12: 1 | G12: 4
A13: Activty 7 | B13: 8 | C13: 5 | D13: 2 | E13: 800 | F13: 2 | G13: 5 | H13: 6
A14: Activty 8 | B14: 9 | C14: 9 | D14: 4 | E14: 500 | F14: 2 | G14: 6 | H14: 7
A15: Dummy End Node | B15: 10 | C15: 0 | D15: 0 | E15: 0 | F15: 2 | G15: 8 | H15: 9

Sheet tc19
B1: Number of Activities = | E1: 19
B2: Target Completion Time = | E2: 295
F3: Number of
C4: Normal | D4: Max | E4: Crash | F4: Immediate | G4: Immediate
B5: Act # | C5: Time | D5: Crash | E5: Cost | F5: Predecessors | G5: Predecessors
A6: Pre-fieldwork procedures | B6: 1 | C6: 20 | D6: 2 | E6: 300 | F6: 0
A7: Observe inventory | B7: 2 | C7: 25 | D7: 3 | E7: 200 | F7: 1 | G7: 1
A8: General audit procedures | B8: 3 | C8: 11 | D8: 1 | E8: 150 | F8: 1 | G8: 2
A9: Audit cash | B9: 4 | C9: 19 | D9: 2 | E9: 350 | F9: 1 | G9: 2
A10: Inventory pricing | B10: 5 | C10: 145 | D10: 8 | E10: 800 | F10: 1 | G10: 2
A11: Audit receivables | B11: 6 | C11: 10 | D11: 2 | E11: 350 | F11: 1 | G11: 4
A12: Audit cost of goods sold | B12: 7 | C12: 25 | D12: 3 | E12: 450 | F12: 1 | G12: 5
A13: Audit sales | B13: 8 | C13: 6 | D13: 2 | E13: 550 | F13: 1 | G13: 6
A14: Audit other current assets | B14: 9 | C14: 11 | D14: 3 | E14: 600 | F14: 1 | G14: 3
A15: Audit other rev. & expense | B15: 10 | C15: 10 | D15: 2 | E15: 500 | F15: 2 | G15: 7 | H15: 8
A16: Audit capital stock & R/E | B16: 11 | C16: 1 | D16: 0 | E16: 0 | F16: 1 | G16: 10
A17: Audit fixed assets | B17: 12 | C17: 22 | D17: 3 | E17: 300 | F17: 1 | G17: 9
A18: Subsequent review | B18: 13 | C18: 18 | D18: 2 | E18: 400 | F18: 2 | G18: 11 | H18: 12
A19: Audit liabilities | B19: 14 | C19: 93 | D19: 8 | E19: 700 | F19: 1 | G19: 5
A20: Lawyer's letter | B20: 15 | C20: 1 | D20: 0 | E20: 0 | F20: 1 | G20: 14
A21: Management's letter | B21: 16 | C21: 1 | D21: 0 | E21: 0 | F21: 2 | G21: 11 | H21: 12
A22: Prepare financial statements | B22: 17 | C22: 15 | D22: 4 | E22: 250 | F22: 3 | G22: 13 | H22: 15 | I22: 16
A23: Prepare tax returns | B23: 18 | C23: 12 | D23: 2 | E23: 500 | F23: 3 | G23: 13 | H23: 15 | I23: 16
A24: Partner/manager review | B24: 19 | C24: 6 | D24: 2 | E24: 650 | F24: 2 | G24: 17 | H24: 18

Sheet tc20
B1: Number of Activities = | E1: 22
B2: Target Completion Time = | E2: 18
F3: Number of
C4: Normal | D4: Max | E4: Crash | F4: Immediate | G4: Immediate
B5: Act # | C5: Time | D5: Crash | E5: Cost | F5: Predecessors | G5: Predecessors
A6: Dummy | B6: 1 | C6: 0 | D6: 0 | E6: 0 | F6: 0
A7: Computer delivery | B7: 2 | C7: 8 | D7: 3 | E7: 400 | F7: 1 | G7: 1
A8: Modify existing applications | B8: 3 | C8: 3 | D8: 1 | E8: 175 | F8: 1 | G8: 1
A9: Design new applications | B9: 4 | C9: 8 | D9: 3 | E9: 375 | F9: 1 | G9: 1
A10: Evaluate manpower | B10: 5 | C10: 2 | D10: 1 | E10: 225 | F10: 1 | G10: 1
A11: Install computer | B11: 6 | C11: 2 | D11: 1 | E11: 200 | F11: 1 | G11: 2
A12: Program modifications | B12: 7 | C12: 4 | D12: 2 | E12: 400 | F12: 1 | G12: 3
A13: Design interface | B13: 8 | C13: 3 | D13: 2 | E13: 350 | F13: 1 | G13: 3
A14: Hire additional people | B14: 9 | C14: 2 | D14: 1 | E14: 100 | F14: 1 | G14: 5
A15: Program new applications | B15: 10 | C15: 6 | D15: 3 | E15: 275 | F15: 3 | G15: 4 | H15: 8 | I15: 9
A16: Test computer | B16: 11 | C16: 2 | D16: 1 | E16: 125 | F16: 1 | G16: 6
A17: Test existing applications | B17: 12 | C17: 2 | D17: 1 | E17: 350 | F17: 2 | G17: 7 | H17: 11
A18: Test new applications | B18: 13 | C18: 2 | D18: 1 | E18: 175 | F18: 1 | G18: 10
A19: Revise existing applications | B19: 14 | C19: 2 | D19: 1 | E19: 425 | F19: 2 | G19: 12 | H19: 13
A20: Revise new applications | B20: 15 | C20: 3 | D20: 1 | E20: 650 | F20: 2 | G20: 12 | H20: 13
A21: Parallel run existing apps | B21: 16 | C21: 2 | D21: 1 | E21: 550 | F21: 1 | G21: 14
A22: Revise documentation for existing apps | B22: 17 | C22: 2 | D22: 1 | E22: 500 | F22: 1 | G22: 14
A23: Second test of new applications | B23: 18 | C23: 2 | D23: 1 | E23: 525 | F23: 1 | G23: 15
A24: Document new applications | B24: 19 | C24: 3 | D24: 1 | E24: 575 | F24: 1 | G24: 18
A25: Implement existing applications | B25: 20 | C25: 1 | D25: 0 | E25: 0 | F25: 1 | G25: 16
A26: Implement new applications | B26: 21 | C26: 2 | D26: 1 | E26: 325 | F26: 2 | G26: 17 | H26: 19
A27: Dummy | B27: 22 | C27: 0 | D27: 0 | E27: 0 | F27: 2 | G27: 20 | H27: 21

Sheet tc68
B1: Number of Activities = | E1: 68
B2: Target Completion Time = | E2: 592
F3: Number of
C4: Normal | D4: Max | E4: Crash | F4: Immediate | G4: Immediate
B5: Act # | C5: Time | D5: Crash | E5: Cost | F5: Predecessors | G5: Predecessors
A6: X1 = Induct Aircraft to Structural/Electrical Phase | B6: 1 | C6: 8 | D6: 0 | E6: 0 | F6: 0
A7: X2 = Raise Fuselage on Work Stands | B7: 2 | C7: 8 | D7: 0 | E7: 0 | F7: 2 | G7: 3 | H7: 4
A8: X3 = Review Work Package, Inventory OCM Parts | B8: 3 | C8: 8 | D8: 0 | E8: 0 | F8: 1 | G8: 1
A9: X4 = Inventory Upgrade Kits | B9: 4 | C9: 16 | D9: 4 | E9: 14788.87 | F9: 1 | G9: 1
A10: X5 = Structural Repair – Roof Section | B10: 5 | C10: 56 | D10: 0 | E10: 0 | F10: 2 | G10: 3 | H10: 4
A11: X6 = Structural Repair – Nose Section | B11: 6 | C11: 104 | D11: 0 | E11: 0 | F11: 2 | G11: 3 | H11: 4
A12: X7 = Remove Landing Gear | B12: 7 | C12: 8 | D12: 2 | E12: 14788.87 | F12: 1 | G12: 2
A13: X8 = Remove Electrical Interference – Transition Section | B13: 8 | C13: 16 | D13: 0 | E13: 0 | F13: 1 | G13: 2
A14: X9 = Remove Electrical Interference – Tailcone Section | B14: 9 | C14: 16 | D14: 0 | E14: 0 | F14: 1 | G14: 2
A15: X10 = Remove Electrical Interference - Cabin | B15: 10 | C15: 24 | D15: 0 | E15: 0 | F15: 1 | G15: 2
A16: X11 = Structural Repair – Cockpit Section | B16: 11 | C16: 80 | D16: 0 | E16: 0 | F16: 1 | G16: 2
A17: X12 = Inspect/Repair Landing Gear Fittings | B17: 12 | C17: 16 | D17: 4 | E17: 14788.87 | F17: 1 | G17: 7
A18: X13 = Inspect/Repair/Reassemble Landing Gear | B18: 13 | C18: 64 | D18: 8 | E18: 43617.67 | F18: 1 | G18: 7
A19: X14 = Structural Repair – Transition Section | B19: 14 | C19: 24 | D19: 0 | E19: 0 | F19: 1 | G19: 8
A20: X15 = Structural Repair – Tail Cone Section | B20: 15 | C20: 72 | D20: 0 | E20: 0 | F20: 1 | G20: 9
A21: X16 = Structural Repair – Cabin Under Floor | B21: 16 | C21: 48 | D21: 0 | E21: 0 | F21: 1 | G21: 10
A22: X17 = SSI 50-6 Rework of Lower Aft Transition Section | B22: 17 | C22: 240 | D22: 0 | E22: 0 | F22: 1 | G22: 14
A23: X18 = Remove Electrical Interference – Roof Section | B23: 18 | C23: 8 | D23: 0 | E23: 0 | F23: 1 | G23: 5
A24: X19 = SSI 50-15 Installation of ESSS Doublers | B24: 19 | C24: 24 | D24: 0 | E24: 0 | F24: 1 | G24: 18
A25: X20 = Install Landing Gear | B25: 20 | C25: 8 | D25: 0 | E25: 0 | F25: 2 | G25: 12 | H25: 13
A26: X21 = Structural Repair – Cabin Overhead | B26: 21 | C26: 48 | D26: 0 | E26: 0 | F26: 1 | G26: 16
A27: X22 = SSI 50-22 Modification of Cockpit Floor and Door Posts | B27: 22 | C27: 32 | D27: 0 | E27: 0 | F27: 1 | G27: 11
A28: X23 = SSI 50-16 Rework of Upper Plating and Doubler Installation | B28: 23 | C28: 64 | D28: 0 | E28: 0 | F28: 1 | G28: 19
A29: X24 = SSI 50-9 Modification of Drive Shaft Supports | B29: 24 | C29: 32 | D29: 0 | E29: 0 | F29: 1 | G29: 15
A30: X25 = SSI 50-35 Modification of Canopy Assembly, Nose Door Hinge Access | B30: 25 | C30: 8 | D30: 0 | E30: 0 | F30: 1 | G30: 6
A31: X26 = Electrical Repair – Nose Section | B31: 26 | C31: 24 | D31: 0 | E31: 0 | F31: 1 | G31: 25
A32: X27 = Electrical Repair – Cockpit Section | B32: 27 | C32: 24 | D32: 0 | E32: 0 | F32: 1 | G32: 22
A33: X28 = SSI 50-13 Installation of Tail Cone Plating Modification Kit | B33: 28 | C33: 56 | D33: 0 | E33: 0 | F33: 1 | G33: 24
A34: X29 = SSI 50-5 Installation of Side Fuselage Structural Reinforcement | B34: 29 | C34: 152 | D34: 0 | E34: 0 | F34: 1 | G34: 21
A35: X30 = Final/Recheck Structural – Nose Section | B35: 30 | C35: 24 | D35: 9 | E35: 5179.27 | F35: 1 | G35: 26
A36: X31 = Final/Recheck Structural – Cockpit Section | B36: 31 | C36: 24 | D36: 8 | E36: 7581.67 | F36: 1 | G36: 27
A37: X32 = SSI 50-30 Installation of HIRSS Repair Kit | B37: 32 | C37: 16 | D37: 0 | E37: 0 | F37: 1 | G37: 23
A38: X33 = Final/Recheck Electrical – Nose Section | B38: 33 | C38: 8 | D38: 2 | E38: 14788.87 | F38: 1 | G38: 30
A39: X34 = Final/Recheck Electrical – Cockpit Section | B39: 34 | C39: 8 | D39: 2 | E39: 14788.87 | F39: 1 | G39: 31
A40: X35 = Electrical Repairs – Roof Section | B40: 35 | C40: 24 | D40: 0 | E40: 0 | F40: 1 | G40: 32
A41: X36 = SSI 50-17 Modification of Station 605.00 Bulkhead | B41: 36 | C41: 32 | D41: 0 | E41: 0 | F41: 1 | G41: 28
A42: X37 = Final/Recheck Structural – Roof Section | B42: 37 | C42: 24 | D42: 8 | E42: 7581.67 | F42: 1 | G42: 35
A43: X38 = Structural Repair - Firewalls | B43: 38 | C43: 24 | D43: 8 | E43: 7581.67 | F43: 1 | G43: 37
A44: X39 = SSI 50-24 Modification of Tail Cone | B44: 39 | C44: 56 | D44: 0 | E44: 0 | F44: 1 | G44: 36
A45: X40 = SSI 50-19 Modification of Left and Right Side Firewall Assemblies | B45: 40 | C45: 32 | D45: 0 | E45: 0 | F45: 1 | G45: 38
A46: X41 = Final/Recheck Structural – Firewalls Section | B46: 41 | C46: 8 | D46: 2 | E46: 14788.87 | F46: 1 | G46: 40
A47: X42 = SSI 50-29 Modification of Tail Cone Shear Deck | B47: 42 | C47: 56 | D47: 0 | E47: 0 | F47: 1 | G47: 39
A48: X43 = Final/Recheck Electrical – Roof Section | B48: 43 | C48: 16 | D48: 6 | E48: 5179.27 | F48: 1 | G48: 41
A49: X44 = SSI 50-7 Modification of Buttline 34.50 | B49: 44 | C49: 40 | D49: 0 | E49: 0 | F49: 1 | G49: 29
A50: X45 = SSI 50-20 Modification of Tail Rotor Drive Shaft Support Brackets | B50: 45 | C50: 16 | D50: 0 | E50: 0 | F50: 1 | G50: 17
A51: X46 = SSI 50-34 Modification of Transition Station 485.00 | B51: 46 | C51: 8 | D51: 0 | E51: 0 | F51: 1 | G51: 45
A52: X47 = SSI 50-21 Replacement of Vapor Barrier Support Structure | B52: 47 | C52: 24 | D52: 0 | E52: 0 | F52: 1 | G52: 46
A53: X48 = SSI 50-26 Modification of Station 379.00 Frame | B53: 48 | C53: 24 | D53: 0 | E53: 0 | F53: 1 | G53: 44
A54: X49 = Electrical Repair –Tail Cone Section | B54: 49 | C54: 24 | D54: 0 | E54: 0 | F54: 1 | G54: 42
A55: X50 = Electrical Repair – Transition Section | B55: 50 | C55: 32 | D55: 0 | E55: 0 | F55: 1 | G55: 47
A56: X51 = Electrical Repair – Cabin Section | B56: 51 | C56: 40 | D56: 0 | E56: 0 | F56: 1 | G56: 48
A57: X52 = Final/Recheck Structural – Tail Cone Section | B57: 52 | C57: 24 | D57: 8 | E57: 7581.67 | F57: 1 | G57: 49
A58: X53 = Final/Recheck Structural – Transition Section | B58: 53 | C58: 24 | D58: 8 | E58: 7581.67 | F58: 1 | G58: 50
A59: X54 = Final/Recheck Electrical – Tail Cone Section | B59: 54 | C59: 8 | D59: 2 | E59: 14788.87 | F59: 1 | G59: 52
A60: X55 = Final/Recheck Structural - Cabin | B60: 55 | C60: 24 | D60: 8 | E60: 7581.67 | F60: 1 | G60: 51
A61: X56 = Final/Recheck Electrical – Transition Section | B61: 56 | C61: 16 | D61: 6 | E61: 5179.27 | F61: 1 | G61: 53
A62: X57 = Final/Recheck Electrical – Cabin Section | B62: 57 | C62: 16 | D62: 6 | E62: 5179.27 | F62: 1 | G62: 55
A63: X58 = Remove Fuselage from Work Stands | B63: 58 | C63: 8 | D63: 2 | E63: 14788.87 | F63: 6 | G63: 20 | H63: 34 | I63: 43 | J63: 54 | K63: 56 | L63: 57
A64: X59 = Wire Alignment | B64: 59 | C64: 40 | D64: 8 | E64: 21996.07 | F64: 1 | G64: 58
A65: X60 = All Structural Repairs Complete | B65: 60 | C65: 4 | D65: 1 | E65: 14788.87 | F65: 2 | G65: 33 | H65: 59
A66: X61 = Seam Seal Fuselage | B66: 61 | C66: 32 | D66: 0 | E66: 0 | F66: 1 | G66: 60
A67: X62 = Move Fuselage to Final ATC | B67: 62 | C67: 4 | D67: 1 | E67: 14788.87 | F67: 1 | G67: 61
A68: X63 = Final ATC | B68: 63 | C68: 80 | D68: 20 | E68: 14788.87 | F68: 1 | G68: 62
A69: X64 = Final Electrical Inspection | B69: 64 | C69: 8 | D69: 0 | E69: 0 | F69: 1 | G69: 63
A70: X65 = Final Structural Inspection | B70: 65 | C70: 8 | D70: 0 | E70: 0 | F70: 1 | G70: 63
A71: X66 = Install EMI Filters | B71: 66 | C71: 8 | D71: 0 | E71: 0 | F71: 1 | G71: 64
A72: X67 = Clean and Close | B72: 67 | C72: 16 | D72: 4 | E72: 14788.87 | F72: 2 | G72: 64 | H72: 65
A73: X68 = Move Fuselage to Retreat/Prime Paint | B73: 68 | C73: 4 | D73: 0 | E73: 0 | F73: 2 | G73: 66 | H73: 67
